[Event "Titled Tuesday Blitz March 28 Early 2023"]
[White "Baches Garcia, Guillermo"]
[Black "Poormosavi, Seyed Kian"]
[WhiteFideId "2209764"]
[BlackFideId "12585807"]
[WhiteElo "2462"]
[BlackElo "2334"]
[Result "0-1"]
[Round "06"]
[TimeControl "180+2"]
[Date "2023.03.28"]
[WhiteClock "0:01:44"]
[BlackClock "0:02:52"]

1. e4 {[%clk 0:03:00]}  c6 {[%clk 0:02:59]} 2. d4 {[%clk 0:02:56]}  d5 {[%clk 0:02:59]} 3. e5 {[%clk 0:02:56]}  c5 {[%clk 0:02:59]} 4. dxc5 {[%clk 0:02:56]}  e6 {[%clk 0:02:57]} 5. a3 {[%clk 0:02:56]}  Bxc5 {[%clk 0:02:57]} 6. Qg4 {[%clk 0:02:50]}  Ne7 {[%clk 0:02:57]} 7. Qxg7 {[%clk 0:02:42]}  Rg8 {[%clk 0:02:57]} 8. Qxh7 {[%clk 0:02:43]}  Nbc6 {[%clk 0:02:57]} 9. Bd3 {[%clk 0:02:04]}  Qb6 {[%clk 0:02:56]} 10. Qh4 {[%clk 0:01:56]}  Nxe5 {[%clk 0:02:54]} 11. b4 {[%clk 0:01:52]}  Bd4 {[%clk 0:02:54]} 12. Ra2 {[%clk 0:01:47]}  Rxg2 {[%clk 0:02:54]} 13. Nh3 {[%clk 0:01:44]}  Nf3+ {[%clk 0:02:52]} 0-1


[Site "https://www.chess.com"]

[Event "Titled Tuesday Blitz March 28 Early 2023"]
[White "Al-Tarboush, Ward"]
[Black "Vafin, Ayrat"]
[WhiteFideId "7601450"]
[BlackFideId "4146530"]
[WhiteElo "2257"]
[BlackElo "2317"]
[Result "1-0"]
[Round "06"]
[TimeControl "180+2"]
[Date "2023.03.28"]
[WhiteClock "0:01:54"]
[BlackClock "0:00:13"]

1. e4 {[%clk 0:03:00]}  e5 {[%clk 0:02:01]} 2. Nf3 {[%clk 0:03:00]}  Nf6 {[%clk 0:02:02]} 3. Nxe5 {[%clk 0:02:58]}  d6 {[%clk 0:02:02]} 4. Nf3 {[%clk 0:02:58]}  Nxe4 {[%clk 0:02:03]} 5. d4 {[%clk 0:02:56]}  d5 {[%clk 0:02:03]} 6. Bd3 {[%clk 0:02:56]}  Nc6 {[%clk 0:02:02]} 7. O-O {[%clk 0:02:55]}  Be7 {[%clk 0:02:02]} 8. Re1 {[%clk 0:02:52]}  Bf5 {[%clk 0:02:02]} 9. Nc3 {[%clk 0:02:49]}  Nxc3 {[%clk 0:02:01]} 10. bxc3 {[%clk 0:02:49]}  Bxd3 {[%clk 0:02:01]} 11. Qxd3 {[%clk 0:02:49]}  O-O {[%clk 0:02:01]} 12. Rb1 {[%clk 0:02:49]}  Rb8 {[%clk 0:01:53]} 13. Bf4 {[%clk 0:02:46]}  Qd7 {[%clk 0:01:51]} 14. c4 {[%clk 0:02:43]}  dxc4 {[%clk 0:01:45]} 15. Qxc4 {[%clk 0:02:44]}  Bd6 {[%clk 0:01:38]} 16. Bg3 {[%clk 0:02:41]}  Bxg3 {[%clk 0:01:28]} 17. hxg3 {[%clk 0:02:42]}  b6 {[%clk 0:01:29]} 18. c3 {[%clk 0:02:41]}  Rfe8 {[%clk 0:01:28]} 19. Qa4 {[%clk 0:02:41]}  Rbd8 {[%clk 0:01:10]} 20. Qb5 {[%clk 0:02:36]}  Rxe1+ {[%clk 0:01:04]} 21. Rxe1 {[%clk 0:02:36]}  f6 {[%clk 0:00:55]} 22. a4 {[%clk 0:02:33]}  Ne5 {[%clk 0:00:45]} 23. Qb3+ {[%clk 0:02:31]}  Nf7 {[%clk 0:00:44]} 24. a5 {[%clk 0:02:29]}  Re8 {[%clk 0:00:44]} 25. Rxe8+ {[%clk 0:02:27]}  Qxe8 {[%clk 0:00:45]} 26. a6 {[%clk 0:02:27]}  Qe2 {[%clk 0:00:41]} 27. Qa4 {[%clk 0:02:20]}  Nd6 {[%clk 0:00:35]} 28. Qd7 {[%clk 0:02:18]}  Qxa6 {[%clk 0:00:32]} 29. Qd8+ {[%clk 0:02:19]}  Kf7 {[%clk 0:00:31]} 30. Qxc7+ {[%clk 0:02:19]}  Ke6 {[%clk 0:00:31]} 31. g4 {[%clk 0:02:13]}  Qa1+ {[%clk 0:00:25]} 32. Kh2 {[%clk 0:02:13]}  Qc1 {[%clk 0:00:25]} 33. Qc6 {[%clk 0:01:59]}  Qf4+ {[%clk 0:00:24]} 34. g3 {[%clk 0:02:00]}  Qxg4 {[%clk 0:00:22]} 35. d5+ {[%clk 0:01:59]}  Ke7 {[%clk 0:00:23]} 36. Qc7+ {[%clk 0:01:59]}  Qd7 {[%clk 0:00:23]} 37. Qb8 {[%clk 0:01:57]}  Ne4 {[%clk 0:00:19]} 38. Nd4 {[%clk 0:01:56]}  Qxd5 {[%clk 0:00:19]} 39. Qxa7+ {[%clk 0:01:55]}  Qd7 {[%clk 0:00:16]} 40. Qxb6 {[%clk 0:01:55]}  Nd6 {[%clk 0:00:15]} 41. Nc6+ {[%clk 0:01:55]}  Kf7 {[%clk 0:00:15]} 42. Qb3+ {[%clk 0:01:54]}  Kg6 {[%clk 0:00:14]} 43. Qc2+ {[%clk 0:01:54]}  Qf5 {[%clk 0:00:13]} 44. Ne7+ {[%clk 0:01:54]} 1-0


[Site "https://www.chess.com"]

[Event "Titled Tuesday Blitz March 28 Early 2023"]
[White "The_Sherman_Variation"]
[Black "Thecourseoisildur"]
[WhiteElo "2626"]
[BlackElo "2445"]
[Result "0-1"]
[Round "06"]
[TimeControl "180+2"]
[Date "2023.03.28"]
[WhiteClock "0:02:11"]
[BlackClock "0:01:45"]

1. b3 {[%clk 0:03:00]}  e5 {[%clk 0:02:58]} 2. Bb2 {[%clk 0:03:00]}  Nc6 {[%clk 0:02:58]} 3. c4 {[%clk 0:02:58]}  Nf6 {[%clk 0:02:57]} 4. e3 {[%clk 0:02:58]}  a6 {[%clk 0:02:57]} 5. Nc3 {[%clk 0:02:58]}  d5 {[%clk 0:02:57]} 6. cxd5 {[%clk 0:02:58]}  Nxd5 {[%clk 0:02:57]} 7. Bc4 {[%clk 0:02:57]}  Nb6 {[%clk 0:02:46]} 8. Nf3 {[%clk 0:02:55]}  Nxc4 {[%clk 0:02:46]} 9. bxc4 {[%clk 0:02:56]}  Bf5 {[%clk 0:02:23]} 10. Qb3 {[%clk 0:02:46]}  Nb4 {[%clk 0:02:04]} 11. Qa4+ {[%clk 0:02:22]}  b5 {[%clk 0:01:52]} 12. cxb5 {[%clk 0:02:21]}  Bc2 {[%clk 0:01:45]} 13. Qa5 {[%clk 0:02:12]}  Nd3+ {[%clk 0:01:45]} 14. Ke2 {[%clk 0:02:11]}  Bb4 {[%clk 0:01:45]} 0-1


[Site "https://www.chess.com"]

[Event "Titled Tuesday Blitz March 28 Early 2023"]
[White "Orlov, Georgi"]
[Black "Zheenbekov, Nurgazy"]
[WhiteFideId "2011271"]
[BlackFideId "13800485"]
[WhiteElo "2595"]
[BlackElo "1975"]
[Result "0-1"]
[Round "06"]
[TimeControl "180+2"]
[Date "2023.03.28"]
[WhiteClock "0:00:02"]
[BlackClock "0:00:25"]

1. d4 {[%clk 0:03:00]}  Nf6 {[%clk 0:02:59]} 2. Nf3 {[%clk 0:03:00]}  e6 {[%clk 0:02:59]} 3. c4 {[%clk 0:03:00]}  d5 {[%clk 0:02:58]} 4. g3 {[%clk 0:03:00]}  Bb4+ {[%clk 0:02:58]} 5. Bd2 {[%clk 0:02:59]}  Bxd2+ {[%clk 0:02:56]} 6. Nbxd2 {[%clk 0:02:57]}  O-O {[%clk 0:02:56]} 7. Bg2 {[%clk 0:02:57]}  b6 {[%clk 0:02:45]} 8. Ne5 {[%clk 0:02:51]}  c6 {[%clk 0:02:45]} 9. Rc1 {[%clk 0:02:46]}  Nfd7 {[%clk 0:02:44]} 10. Nd3 {[%clk 0:02:35]}  Bb7 {[%clk 0:02:36]} 11. e4 {[%clk 0:02:23]}  dxe4 {[%clk 0:02:33]} 12. Nxe4 {[%clk 0:02:22]}  Nf6 {[%clk 0:02:20]} 13. Ne5 {[%clk 0:02:08]}  Nxe4 {[%clk 0:01:49]} 14. Bxe4 {[%clk 0:02:07]}  f6 {[%clk 0:01:43]} 15. Qh5 {[%clk 0:01:41]}  h6 {[%clk 0:01:42]} 16. Ng6 {[%clk 0:01:35]}  Rf7 {[%clk 0:01:36]} 17. O-O {[%clk 0:01:27]}  Nd7 {[%clk 0:01:22]} 18. Rfe1 {[%clk 0:01:10]}  Qc7 {[%clk 0:01:16]} 19. d5 {[%clk 0:00:55]}  exd5 {[%clk 0:01:10]} 20. cxd5 {[%clk 0:00:54]}  Nc5 {[%clk 0:01:03]} 21. dxc6 {[%clk 0:00:33]}  Nxe4 {[%clk 0:00:54]} 22. Rxe4 {[%clk 0:00:31]}  Rc8 {[%clk 0:00:49]} 23. Qd5 {[%clk 0:00:13]}  Rd8 {[%clk 0:00:25]} 24. Ne7+ {[%clk 0:00:03]}  Kf8 {[%clk 0:00:25]} 25. Ng6+ {[%clk 0:00:02]}  Kg8 {[%clk 0:00:25]} 0-1


[Site "https://www.chess.com"]

[Event "Titled Tuesday Blitz March 28 Early 2023"]
[White "Ozdemir, Serhan Berat"]
[Black "Demin, Vladimir"]
[WhiteFideId "6374611"]
[BlackFideId "4167457"]
[WhiteElo "2015"]
[BlackElo "2593"]
[Result "1-0"]
[Round "06"]
[TimeControl "180+2"]
[Date "2023.03.28"]
[WhiteClock "0:00:21"]
[BlackClock "0:00:04"]

1. e4 {[%clk 0:03:00]}  e5 {[%clk 0:02:58]} 2. Nf3 {[%clk 0:03:00]}  Nc6 {[%clk 0:02:58]} 3. d4 {[%clk 0:03:00]}  exd4 {[%clk 0:02:58]} 4. Bc4 {[%clk 0:03:01]}  Nf6 {[%clk 0:02:57]} 5. e5 {[%clk 0:03:01]}  d5 {[%clk 0:02:57]} 6. Bb5 {[%clk 0:03:02]}  Nd7 {[%clk 0:02:57]} 7. O-O {[%clk 0:03:01]}  Be7 {[%clk 0:02:54]} 8. Re1 {[%clk 0:02:58]}  O-O {[%clk 0:02:54]} 9. Bxc6 {[%clk 0:02:58]}  bxc6 {[%clk 0:02:53]} 10. Nxd4 {[%clk 0:02:59]}  Nb8 {[%clk 0:02:53]} 11. Qf3 {[%clk 0:02:59]}  c5 {[%clk 0:02:45]} 12. Nf5 {[%clk 0:02:59]}  Bxf5 {[%clk 0:02:45]} 13. Qxf5 {[%clk 0:03:00]}  Nc6 {[%clk 0:02:45]} 14. Qg4 {[%clk 0:02:35]}  Qc8 {[%clk 0:02:38]} 15. Qg3 {[%clk 0:02:29]}  Qe6 {[%clk 0:02:37]} 16. Nc3 {[%clk 0:02:14]}  Nd4 {[%clk 0:02:33]} 17. Qd3 {[%clk 0:02:14]}  c6 {[%clk 0:02:25]} 18. Be3 {[%clk 0:02:07]}  Nf5 {[%clk 0:02:23]} 19. Bf4 {[%clk 0:02:07]}  c4 {[%clk 0:02:19]} 20. Qd2 {[%clk 0:02:04]}  Rad8 {[%clk 0:02:18]} 21. Rad1 {[%clk 0:02:02]}  Qg6 {[%clk 0:02:10]} 22. Qe2 {[%clk 0:01:50]}  Bb4 {[%clk 0:02:01]} 23. Bg3 {[%clk 0:01:42]}  h5 {[%clk 0:01:55]} 24. Qf3 {[%clk 0:01:32]}  h4 {[%clk 0:01:43]} 25. Bf4 {[%clk 0:01:28]}  d4 {[%clk 0:01:34]} 26. a3 {[%clk 0:01:14]}  Ba5 {[%clk 0:01:30]} 27. Ne4 {[%clk 0:01:12]}  Bxe1 {[%clk 0:01:28]} 28. Rxe1 {[%clk 0:01:12]}  d3 {[%clk 0:01:18]} 29. c3 {[%clk 0:01:13]}  Rb8 {[%clk 0:00:56]} 30. Nd2 {[%clk 0:01:12]}  Qe6 {[%clk 0:00:50]} 31. Qe4 {[%clk 0:01:12]}  Rxb2 {[%clk 0:00:34]} 32. Nxc4 {[%clk 0:01:12]}  Rb5 {[%clk 0:00:29]} 33. Qxd3 {[%clk 0:01:08]}  Rd5 {[%clk 0:00:27]} 34. Qf3 {[%clk 0:01:08]}  Rfd8 {[%clk 0:00:25]} 35. h3 {[%clk 0:00:58]}  Rd3 {[%clk 0:00:24]} 36. Qg4 {[%clk 0:00:58]}  Qxc4 {[%clk 0:00:18]} 37. Qxf5 {[%clk 0:00:57]}  Rd1 {[%clk 0:00:15]} 38. Rxd1 {[%clk 0:00:48]}  Rxd1+ {[%clk 0:00:16]} 39. Kh2 {[%clk 0:00:48]}  g6 {[%clk 0:00:14]} 40. Qc8+ {[%clk 0:00:46]}  Kh7 {[%clk 0:00:13]} 41. Qg4 {[%clk 0:00:33]}  Qf1 {[%clk 0:00:06]} 42. Qxh4+ {[%clk 0:00:33]}  Kg8 {[%clk 0:00:06]} 43. Qf6 {[%clk 0:00:29]}  Qg1+ {[%clk 0:00:06]} 44. Kg3 {[%clk 0:00:29]}  Qe1 {[%clk 0:00:04]} 45. Bh6 {[%clk 0:00:23]}  Rd3+ {[%clk 0:00:04]} 46. Kh2 {[%clk 0:00:24]}  Rxh3+ {[%clk 0:00:04]} 47. gxh3 {[%clk 0:00:21]} 1-0


[Site "https://www.chess.com"]

[Event "Titled Tuesday Blitz March 28 Early 2023"]
[White "Rosen, Eric"]
[Black "Escanor89"]
[WhiteFideId "2032562"]
[WhiteElo "2331"]
[BlackElo "2521"]
[Result "1-0"]
[Round "06"]
[TimeControl "180+2"]
[Date "2023.03.28"]
[WhiteClock "0:00:44"]
[BlackClock "0:00:06"]

1. d4 {[%clk 0:03:00]}  Nf6 {[%clk 0:02:59]} 2. Bf4 {[%clk 0:02:59]}  e6 {[%clk 0:02:56]} 3. e3 {[%clk 0:02:59]}  b6 {[%clk 0:02:57]} 4. Qf3 {[%clk 0:02:59]}  Nc6 {[%clk 0:02:39]} 5. Nc3 {[%clk 0:02:58]}  Bb7 {[%clk 0:02:31]} 6. O-O-O {[%clk 0:02:58]}  d6 {[%clk 0:02:17]} 7. h4 {[%clk 0:02:58]}  a6 {[%clk 0:02:15]} 8. h5 {[%clk 0:02:58]}  h6 {[%clk 0:02:14]} 9. Qg3 {[%clk 0:02:58]}  Qd7 {[%clk 0:02:11]} 10. e4 {[%clk 0:02:42]}  O-O-O {[%clk 0:02:09]} 11. Be2 {[%clk 0:02:29]}  Kb8 {[%clk 0:01:59]} 12. f3 {[%clk 0:02:22]}  d5 {[%clk 0:01:49]} 13. e5 {[%clk 0:02:13]}  Ng8 {[%clk 0:01:47]} 14. Be3 {[%clk 0:02:11]}  Nge7 {[%clk 0:01:47]} 15. Bf2 {[%clk 0:02:08]}  Na5 {[%clk 0:01:40]} 16. f4 {[%clk 0:02:07]}  Nc4 {[%clk 0:01:39]} 17. Nf3 {[%clk 0:01:48]}  Nf5 {[%clk 0:01:34]} 18. Qh3 {[%clk 0:01:48]}  Bb4 {[%clk 0:01:15]} 19. Nd2 {[%clk 0:01:42]}  Nxd2 {[%clk 0:01:09]} 20. Rxd2 {[%clk 0:01:40]}  Qc6 {[%clk 0:01:03]} 21. g4 {[%clk 0:01:39]}  Bxc3 {[%clk 0:00:58]} 22. Qxc3 {[%clk 0:01:39]}  Qxc3 {[%clk 0:00:59]} 23. bxc3 {[%clk 0:01:40]}  Ne7 {[%clk 0:00:59]} 24. Bh4 {[%clk 0:01:40]}  Rd7 {[%clk 0:00:58]} 25. Rf1 {[%clk 0:01:22]}  c5 {[%clk 0:00:56]} 26. f5 {[%clk 0:01:21]}  Nc6 {[%clk 0:00:54]} 27. Rf4 {[%clk 0:01:00]}  Kc7 {[%clk 0:00:18]} 28. Bd3 {[%clk 0:01:01]}  Rg8 {[%clk 0:00:14]} 29. Rdf2 {[%clk 0:01:00]}  Bc8 {[%clk 0:00:11]} 30. fxe6 {[%clk 0:00:58]}  fxe6 {[%clk 0:00:12]} 31. Bh7 {[%clk 0:00:58]}  Rh8 {[%clk 0:00:11]} 32. Bg6 {[%clk 0:00:59]}  Rg8 {[%clk 0:00:11]} 33. Bf7 {[%clk 0:00:58]}  Rxf7 {[%clk 0:00:07]} 34. Rxf7+ {[%clk 0:00:57]}  Bd7 {[%clk 0:00:08]} 35. R2f4 {[%clk 0:00:55]}  a5 {[%clk 0:00:08]} 36. Kd2 {[%clk 0:00:54]}  Kc8 {[%clk 0:00:08]} 37. Rf8+ {[%clk 0:00:50]}  Rxf8 {[%clk 0:00:08]} 38. Rxf8+ {[%clk 0:00:51]}  Kc7 {[%clk 0:00:09]} 39. Rf7 {[%clk 0:00:51]}  cxd4 {[%clk 0:00:09]} 40. cxd4 {[%clk 0:00:50]}  Nxd4 {[%clk 0:00:09]} 41. Bf2 {[%clk 0:00:48]}  Nc6 {[%clk 0:00:09]} 42. Bg3 {[%clk 0:00:48]}  Nd4 {[%clk 0:00:09]} 43. Rxg7 {[%clk 0:00:47]}  Nf3+ {[%clk 0:00:09]} 44. Ke3 {[%clk 0:00:47]}  Ng5 {[%clk 0:00:10]} 45. Rxg5 {[%clk 0:00:44]}  hxg5 {[%clk 0:00:10]} 46. h6 {[%clk 0:00:45]}  d4+ {[%clk 0:00:06]} 47. Kxd4 {[%clk 0:00:44]} 1-0


[Site "https://www.chess.com"]

[Event "Titled Tuesday Blitz March 28 Early 2023"]
[White "drdaro"]
[Black "Crevatin, Leo"]
[BlackFideId "1726307"]
[WhiteElo "2409"]
[BlackElo "2190"]
[Result "0-1"]
[Round "06"]
[TimeControl "180+2"]
[Date "2023.03.28"]
[WhiteClock "0:00:01"]
[BlackClock "0:00:28"]

1. Nc3 {[%clk 0:01:53]}  d5 {[%clk 0:02:54]} 2. d4 {[%clk 0:01:53]}  Nf6 {[%clk 0:02:53]} 3. Bf4 {[%clk 0:01:53]}  c5 {[%clk 0:02:53]} 4. dxc5 {[%clk 0:01:53]}  Nc6 {[%clk 0:02:46]} 5. Nf3 {[%clk 0:01:48]}  Bf5 {[%clk 0:02:42]} 6. e3 {[%clk 0:01:42]}  Rc8 {[%clk 0:02:35]} 7. Nd4 {[%clk 0:01:37]}  Bg4 {[%clk 0:02:31]} 8. f3 {[%clk 0:01:25]}  Bd7 {[%clk 0:02:30]} 9. Bb5 {[%clk 0:01:11]}  e6 {[%clk 0:02:01]} 10. Bxc6 {[%clk 0:01:04]}  bxc6 {[%clk 0:02:01]} 11. b4 {[%clk 0:00:56]}  Nh5 {[%clk 0:02:00]} 12. Bg3 {[%clk 0:00:51]}  Nxg3 {[%clk 0:01:49]} 13. hxg3 {[%clk 0:00:52]}  Qg5 {[%clk 0:01:48]} 14. Kf2 {[%clk 0:00:49]}  e5 {[%clk 0:01:49]} 15. Nb3 {[%clk 0:00:40]}  g6 {[%clk 0:01:47]} 16. a4 {[%clk 0:00:31]}  Bg7 {[%clk 0:01:45]} 17. Ne2 {[%clk 0:00:23]}  O-O {[%clk 0:01:42]} 18. c3 {[%clk 0:00:23]}  Qe7 {[%clk 0:01:34]} 19. Qg1 {[%clk 0:00:17]}  e4 {[%clk 0:01:31]} 20. Ned4 {[%clk 0:00:11]}  exf3 {[%clk 0:01:30]} 21. gxf3 {[%clk 0:00:12]}  Rfe8 {[%clk 0:01:29]} 22. Re1 {[%clk 0:00:12]}  h5 {[%clk 0:01:22]} 23. Qh2 {[%clk 0:00:13]}  Bh6 {[%clk 0:01:19]} 24. f4 {[%clk 0:00:10]}  Bg7 {[%clk 0:01:12]} 25. Qh4 {[%clk 0:00:10]}  Bf6 {[%clk 0:01:12]} 26. Qh2 {[%clk 0:00:11]}  Qf8 {[%clk 0:01:07]} 27. Qg2 {[%clk 0:00:09]}  Re7 {[%clk 0:01:05]} 28. Qf1 {[%clk 0:00:09]}  Rce8 {[%clk 0:01:04]} 29. Qd3 {[%clk 0:00:10]}  Qg7 {[%clk 0:00:56]} 30. b5 {[%clk 0:00:10]}  Rc8 {[%clk 0:00:53]} 31. b6 {[%clk 0:00:10]}  axb6 {[%clk 0:00:53]} 32. cxb6 {[%clk 0:00:11]}  c5 {[%clk 0:00:53]} 33. Nb5 {[%clk 0:00:06]}  c4 {[%clk 0:00:52]} 34. Qxd5 {[%clk 0:00:05]}  cxb3 {[%clk 0:00:53]} 35. b7 {[%clk 0:00:06]}  Rb8 {[%clk 0:00:51]} 36. Nd6 {[%clk 0:00:05]}  Be6 {[%clk 0:00:46]} 37. Qc5 {[%clk 0:00:02]}  Qf8 {[%clk 0:00:44]} 38. Qb6 {[%clk 0:00:01]}  Qd8 {[%clk 0:00:32]} 39. Qb4 {[%clk 0:00:01]}  Rd7 {[%clk 0:00:28]} 40. Rd1 {[%clk 0:00:02]}  Be7 {[%clk 0:00:28]} 41. Qa5 {[%clk 0:00:01]}  Qxa5 {[%clk 0:00:28]} 0-1


[Site "https://www.chess.com"]

[Event "Titled Tuesday Blitz March 28 Early 2023"]
[White "Titichoca Daza, Daniel"]
[Black "Kuzmin, Roman"]
[WhiteFideId "3309550"]
[BlackFideId "44134932"]
[WhiteElo "2095"]
[BlackElo "2146"]
[Result "1-0"]
[Round "06"]
[TimeControl "180+2"]
[Date "2023.03.28"]
[WhiteClock "0:00:38"]
[BlackClock "0:00:02"]

1. d4 {[%clk 0:02:33]}  Nf6 {[%clk 0:02:58]} 2. c4 {[%clk 0:02:33]}  e6 {[%clk 0:02:58]} 3. Nc3 {[%clk 0:02:30]}  d5 {[%clk 0:02:58]} 4. Bg5 {[%clk 0:02:26]}  Nbd7 {[%clk 0:02:56]} 5. e3 {[%clk 0:02:10]}  c6 {[%clk 0:02:55]} 6. f4 {[%clk 0:02:02]}  Qa5 {[%clk 0:02:43]} 7. a3 {[%clk 0:01:48]}  dxc4 {[%clk 0:02:22]} 8. Bxf6 {[%clk 0:01:40]}  Nxf6 {[%clk 0:02:23]} 9. Bxc4 {[%clk 0:01:40]}  c5 {[%clk 0:02:10]} 10. Bb5+ {[%clk 0:01:36]}  Bd7 {[%clk 0:02:09]} 11. Bxd7+ {[%clk 0:01:36]}  Nxd7 {[%clk 0:02:10]} 12. d5 {[%clk 0:01:36]}  O-O-O {[%clk 0:01:53]} 13. Nf3 {[%clk 0:01:33]}  Nf6 {[%clk 0:01:48]} 14. Ne5 {[%clk 0:01:28]}  Nxd5 {[%clk 0:01:43]} 15. Nxf7 {[%clk 0:01:25]}  Be7 {[%clk 0:01:44]} 16. Qg4 {[%clk 0:01:20]}  Kb8 {[%clk 0:01:10]} 17. O-O {[%clk 0:01:14]}  Nxe3 {[%clk 0:01:07]} 18. Qxe6 {[%clk 0:01:09]}  Bf6 {[%clk 0:01:02]} 19. Nxh8 {[%clk 0:01:03]}  Nxf1 {[%clk 0:00:25]} 20. Nf7 {[%clk 0:00:59]}  Rc8 {[%clk 0:00:11]} 21. Nd6 {[%clk 0:00:53]}  Bd4+ {[%clk 0:00:10]} 22. Kxf1 {[%clk 0:00:51]}  Qa6+ {[%clk 0:00:09]} 23. Ncb5 {[%clk 0:00:48]}  Rf8 {[%clk 0:00:10]} 24. Ke1 {[%clk 0:00:42]}  Qa5+ {[%clk 0:00:07]} 25. b4 {[%clk 0:00:40]}  cxb4 {[%clk 0:00:02]} 26. Nxd4 {[%clk 0:00:41]}  b3+ {[%clk 0:00:02]} 27. Ke2 {[%clk 0:00:41]}  b2 {[%clk 0:00:02]} 28. Qe7 {[%clk 0:00:38]} 1-0


[Site "https://www.chess.com"]

[Event "Titled Tuesday Blitz March 28 Early 2023"]
[White "Melian, Juan Sebastian"]
[Black "Skaric, Djuro"]
[WhiteFideId "3706575"]
[BlackFideId "934569"]
[WhiteElo "2031"]
[BlackElo "2282"]
[Result "1-0"]
[Round "06"]
[TimeControl "180+2"]
[Date "2023.03.28"]
[WhiteClock "0:01:55"]
[BlackClock "0:01:58"]

1. d4 {[%clk 0:03:00]}  d6 {[%clk 0:02:59]} 2. e4 {[%clk 0:02:43]}  g6 {[%clk 0:03:00]} 3. Nc3 {[%clk 0:02:40]}  Bg7 {[%clk 0:03:00]} 4. Be3 {[%clk 0:02:40]}  Nf6 {[%clk 0:03:00]} 5. f3 {[%clk 0:02:39]}  Nc6 {[%clk 0:03:00]} 6. Nge2 {[%clk 0:02:38]}  O-O {[%clk 0:03:00]} 7. Qd2 {[%clk 0:02:39]}  e5 {[%clk 0:03:00]} 8. O-O-O {[%clk 0:02:39]}  Nh5 {[%clk 0:02:59]} 9. g4 {[%clk 0:02:38]}  Nf4 {[%clk 0:02:59]} 10. Bxf4 {[%clk 0:02:24]}  exf4 {[%clk 0:02:59]} 11. Qxf4 {[%clk 0:02:25]}  Qh4 {[%clk 0:02:55]} 12. Qg3 {[%clk 0:02:22]}  Qxg3 {[%clk 0:02:39]} 13. hxg3 {[%clk 0:02:23]}  a6 {[%clk 0:02:38]} 14. g5 {[%clk 0:02:12]}  Ne7 {[%clk 0:02:20]} 15. Bh3 {[%clk 0:02:11]}  Bxh3 {[%clk 0:02:18]} 16. Rxh3 {[%clk 0:02:12]}  c6 {[%clk 0:02:15]} 17. Rdh1 {[%clk 0:02:11]}  h5 {[%clk 0:02:14]} 18. gxh6 {[%clk 0:02:11]}  Bf6 {[%clk 0:02:13]} 19. f4 {[%clk 0:02:06]}  Kh7 {[%clk 0:02:03]} 20. e5 {[%clk 0:02:05]}  dxe5 {[%clk 0:02:03]} 21. dxe5 {[%clk 0:02:06]}  Bh8 {[%clk 0:02:02]} 22. Ne4 {[%clk 0:02:07]}  f6 {[%clk 0:02:01]} 23. exf6 {[%clk 0:01:55]}  Bxf6 {[%clk 0:02:00]} 24. Rd1 {[%clk 0:01:55]}  Rfe8 {[%clk 0:01:58]} 25. Nxf6+ {[%clk 0:01:55]} 1-0


[Site "https://www.chess.com"]

[Event "Titled Tuesday Blitz March 28 Early 2023"]
[White "Krsnik Cohar, Ivan Vihor"]
[Black "Rosenberg, Evan S"]
[WhiteFideId "14520044"]
[BlackFideId "2019299"]
[WhiteElo "2414"]
[BlackElo "2325"]
[Result "1-0"]
[Round "06"]
[TimeControl "180+2"]
[Date "2023.03.28"]
[WhiteClock "0:00:58"]
[BlackClock "0:00:17"]

1. e4 {[%clk 0:03:00]}  e5 {[%clk 0:02:58]} 2. Nf3 {[%clk 0:03:00]}  Nc6 {[%clk 0:02:59]} 3. d4 {[%clk 0:03:01]}  exd4 {[%clk 0:02:59]} 4. Bc4 {[%clk 0:03:02]}  Nf6 {[%clk 0:02:59]} 5. O-O {[%clk 0:03:02]}  Nxe4 {[%clk 0:02:59]} 6. Re1 {[%clk 0:03:03]}  d5 {[%clk 0:03:00]} 7. Bxd5 {[%clk 0:03:03]}  Qxd5 {[%clk 0:03:00]} 8. Nc3 {[%clk 0:03:04]}  Qd7 {[%clk 0:03:00]} 9. Rxe4+ {[%clk 0:03:01]}  Be7 {[%clk 0:02:58]} 10. Nxd4 {[%clk 0:03:02]}  Nxd4 {[%clk 0:01:19]} 11. Rxd4 {[%clk 0:03:00]}  Qc6 {[%clk 0:01:19]} 12. Nd5 {[%clk 0:02:46]}  Bd6 {[%clk 0:01:17]} 13. Bf4 {[%clk 0:02:26]}  Be6 {[%clk 0:01:09]} 14. Bxd6 {[%clk 0:02:17]}  cxd6 {[%clk 0:01:00]} 15. Qe2 {[%clk 0:01:16]}  Qc5 {[%clk 0:00:50]} 16. Rad1 {[%clk 0:01:16]}  O-O {[%clk 0:00:49]} 17. b4 {[%clk 0:01:11]}  Bg4 {[%clk 0:00:19]} 18. Rxg4 {[%clk 0:01:00]}  Rfe8 {[%clk 0:00:15]} 19. Qxe8+ {[%clk 0:00:58]}  Rxe8 {[%clk 0:00:16]} 20. bxc5 {[%clk 0:00:58]}  Re1+ {[%clk 0:00:17]} 21. Rxe1 {[%clk 0:00:58]} 1-0


[Site "https://www.chess.com"]